fUST/lending_fUST_20250917
["ID","MTS","AMOUNT","RATE_DAILY","PERIOD"]
[385902801,1758122640216,-168.0,0.00022548,7]
[385902802,1758122640319,-8005.01,0.00022636,2]
[385902803,1758122640355,-10000.01,0.00022636,2]
[385902807,1758122772690,-150.0,0.00021553,2]
[385902808,1758122772721,-212.98,0.00022579,2]
[385902809,1758122772752,-1603.3845865,0.00022636,2]
[385902810,1758122772782,-2188.83769573,0.00023177,2]
[385902811,1758122772813,-480.0,0.00023178,2]
[385902812,1758122772846,-249.60543554,0.00023178,2]
[385902813,1758122772952,-230.39456446,0.00023178,2]
[385902815,1758122818499,-150.0,0.00021543,2]
[385902816,1758122818529,-682.8940436,0.00022455,2]
[385902817,1758122818563,-203.74,0.00022569,2]
[385902818,1758122818594,-300.0,0.00023178,2]
[385902819,1758122818625,-480.0,0.00023179,3]
[385902820,1758122818660,-481.98128118,0.00023179,3]
[385902821,1758122818691,-480.0,0.00023179,3]
[385902822,1758122818723,-480.0,0.00023179,3]
[385902823,1758122818754,-480.0,0.00023179,3]
[385902824,1758122818785,-480.0,0.00023179,3]
[385902825,1758122818816,-480.0,0.00023179,3]
[385902826,1758122818847,-122.77935044,0.00023179,3]
[385902827,1758122819066,-357.22064956,0.00023179,3]
[385902829,1758122845568,-300.0,0.00023178,2]
[385902830,1758122845599,-480.0,0.00023179,3]
[385902831,1758122845629,-480.0,0.00023179,3]
[385902832,1758122845659,-480.0,0.00023179,3]
[385902833,1758122845692,-480.0,0.00023179,3]
[385902834,1758122845725,-480.0,0.00023179,3]
[385902835,1758122845766,-480.0,0.00023179,3]
[385902836,1758122845805,-480.0,0.00023179,3]
[385902837,1758122845843,-480.0,0.00023179,3]
[385902838,1758122845880,-480.0,0.00023179,3]
[385902839,1758122845917,-364.06153712,0.00023179,3]
[385902840,1758122846176,-31.88692576,0.00023179,3]
[385902841,1758122852104,-480.0,0.00023178,3]
[385902842,1758122852128,-480.0,0.00023179,3]
[385902843,1758122852153,-486.67964897,0.00023179,3]
[385902844,1758122852178,-480.0,0.00023179,3]
[385902845,1758122852205,-480.0,0.00023179,3]
[385902846,1758122852232,-500.0,0.00023273,2]
[385902847,1758122852256,-500.0,0.00023273,2]
[385902848,1758122852280,-500.0,0.00023273,2]
[385902849,1758122852307,-500.0,0.00023273,2]
[385902850,1758122852335,-262.46798403,0.00023273,2]
[385902851,1758122852360,-500.0,0.00023273,2]
[385902852,1758122852384,-500.0,0.00023273,2]
[385902853,1758122852409,-500.0,0.00023273,2]
[385902854,1758122852434,-500.0,0.00023273,2]
[385902855,1758122852459,-500.0,0.00023273,2]
[385902856,1758122852484,-500.0,0.00023273,2]
[385902857,1758122852509,-515.47645687,0.00023273,2]
[385902858,1758122852534,-500.0,0.00023273,2]
[385902859,1758122852561,-499.66,0.00023276,3]
[385902860,1758122852588,-480.0,0.00023276,3]
[385902861,1758122852615,-480.0,0.00023276,3]
[385902862,1758122852642,-545.21,0.00023276,3]
[385902863,1758122852670,-480.0,0.00023276,3]
[385902864,1758122852697,-480.0,0.00023277,3]
[385902865,1758122852722,-480.0,0.00023277,3]
[385902866,1758122852748,-480.0,0.00023277,3]
[385902867,1758122852772,-480.0,0.00023277,3]
[385902868,1758122852794,-480.0,0.00023277,3]
[385902869,1758122852963,-165.49792862,0.00023277,3]
[385902870,1758122852989,-480.0,0.00023277,3]
[385902871,1758122853012,-480.0,0.00023277,3]
[385902872,1758122853037,-480.0,0.00023277,3]
[385902873,1758122853060,-480.0,0.00023277,3]
[385902874,1758122853084,-480.0,0.00023277,3]
[385902875,1758122853108,-480.0,0.00023277,3]
[385902876,1758122853130,-480.0,0.00023277,3]
[385902877,1758122853153,-480.0,0.00023277,3]
[385902878,1758122853178,-480.0,0.00023277,3]
[385902879,1758122853201,-567.76,0.00023277,3]
[385902880,1758122853224,-480.0,0.00023277,3]
[385902881,1758122853247,-490.23,0.00023277,3]
[385902882,1758122853270,-615.62,0.00023277,3]
[385902883,1758122853295,-523.41,0.00023277,3]
[385902884,1758122853318,-480.0,0.00023277,3]
[385902885,1758122853340,-480.0,0.00023277,3]
[385902886,1758122853363,-480.0,0.00023277,3]
[385902887,1758122853385,-480.0,0.00023277,3]
[385902888,1758122853408,-480.0,0.00023277,3]
[385902889,1758122853432,-480.0,0.00023277,3]
[385902890,1758122853456,-480.0,0.00023277,3]
[385902891,1758122853478,-480.0,0.00023277,3]
[385902892,1758122853501,-221.26117875,0.00023277,3]
[385902893,1758122853524,-480.0,0.00023277,3]
[385902894,1758122853549,-480.0,0.00023277,3]
[385902895,1758122853572,-316.58725606,0.00023277,3]
[385902896,1758122853596,-480.0,0.00023277,3]
[385902897,1758122853620,-480.0,0.00023277,3]
[385902898,1758122853645,-480.0,0.00023277,3]
[385902899,1758122853668,-480.0,0.00023277,3]
[385902900,1758122853691,-480.0,0.00023277,3]
[385902901,1758122853716,-480.0,0.00023277,3]
[385902902,1758122853739,-480.0,0.00023277,3]
[385902903,1758122853764,-480.0,0.00023277,3]
[385902904,1758122853788,-542.09,0.00023277,3]
[385902905,1758122853812,-480.0,0.00023277,3]
[385902906,1758122853838,-322.8226475,0.00023277,3]
[385902907,1758122853862,-480.0,0.00023277,3]
[385902908,1758122853887,-480.0,0.00023277,3]
[385902909,1758122853913,-690.63,0.00023277,3]
[385902910,1758122853938,-480.0,0.00023277,3]
[385902911,1758122853963,-693.18,0.00023277,3]
[385902912,1758122853990,-481.17,0.00023277,3]
[385902913,1758122854015,-497.37,0.00023277,3]
[385902914,1758122854041,-480.0,0.00023277,3]
[385902915,1758122854066,-503.8374256,0.00023277,3]
[385902916,1758122854092,-480.0,0.00023277,3]
[385902917,1758122854116,-480.0,0.00023277,3]
[385902918,1758122854141,-480.0,0.00023277,3]
[385902919,1758122854165,-498.34,0.00023277,3]
[385902920,1758122854191,-480.0,0.00023277,3]
[385902921,1758122854218,-212.56467724,0.00023277,3]
[385902922,1758122857940,192.0,0.00020356,3]
[385902923,1758122858596,157.23025,0.0002628,30]
[385902924,1758122869802,1222.34112,0.00018,2]
[385902926,1758122915685,8585.66888,0.00015,2]
[385902927,1758122915710,10000.01,0.00015,2]
[385902928,1758122915736,10000.01,0.00015,2]
[385902929,1758122915761,10000.01,0.00015,2]
[385902930,1758122915788,10000.01,0.00015,2]
[385902931,1758122915813,1236.21607138,0.00015,2]
[385902932,1758122917795,1000.0,0.0001,2]
[385902933,1758122923313,7763.79392862,0.0001,2]
[385902934,1758122923338,1763.25806209,0.0001,2]
[385902935,1758122924882,5506.67606476,0.0001,2]
[385902936,1758122925297,1727.77758891,0.0001,2]
[385903020,1758123038690,-150.0,0.00021667,2]
[385903021,1758123038700,-310.0,0.000219,2]
[385903022,1758123038709,-208.43786382,0.00022203,2]
[385903023,1758123038781,-455.27,0.00022203,2]
[385903024,1758123039471,-1122.13870178,0.00022203,2]
[385903025,1758123039480,-194.74,0.00022699,2]
[385903026,1758123039489,-198.26325302,0.00023,2]
[385903027,1758123039499,-198.26325301,0.00023,2]
[385903028,1758123039508,-155.0,0.00023096,9]
[385903029,1758123039517,-590.75,0.00023178,3]
[385903030,1758123039526,-480.0,0.00023178,3]
[385903031,1758123039536,-480.0,0.00023179,3]
[385903032,1758123039545,-480.0,0.00023179,3]
[385903033,1758123039554,-248.81423401,0.000232,2]
[385903034,1758123039563,-500.0,0.00023273,2]
[385903035,1758123039573,-231.95619654,0.00023275,2]
[385903036,1758123039584,-68.04380346,0.00023275,2]
[385903037,1758123039594,-480.0,0.00023276,3]
[385903038,1758123039603,-480.0,0.00023276,3]
[385903039,1758123039613,-480.0,0.00023276,3]
[385903040,1758123039622,-380.22676807,0.00023276,3]
[385903041,1758123039633,-50.60323193,0.00023276,3]
[385903042,1758123039643,-480.0,0.00023276,3]
[385903043,1758123039652,-480.0,0.00023276,3]
[385903044,1758123039661,-100.31496201,0.00023276,3]
[385903045,1758123039673,-379.68503799,0.00023276,3]
[385903046,1758123039682,-480.0,0.00023276,3]
[385903047,1758123039691,-267.43532276,0.00023277,3]
[385903048,1758123039702,-480.0,0.00023277,3]
[385903049,1758123039711,-480.0,0.00023277,3]
[385903050,1758123039720,-233.83560486,0.00023277,3]
[385903051,1758123039733,-246.16439514,0.00023277,3]
[385903052,1758123039743,-348.8196538,0.00023277,3]
[385903053,1758123039754,-131.1803462,0.00023277,3]
[385903055,1758123039763,-430.66744159,0.00023277,3]
[385903057,1758123039774,-49.33255841,0.00023277,3]
[385903059,1758123039783,-480.0,0.00023277,3]
[385903060,1758123039793,-480.0,0.00023277,3]
[385903061,1758123039803,-182.74667116,0.00023277,3]
[385903068,1758123040437,-435.61332884,0.00023277,3]
[385903069,1758123040446,-480.0,0.00023277,3]
[385903070,1758123040456,-1139.75,0.00023277,3]
[385903071,1758123040465,-556.06,0.00023277,3]
[385903072,1758123040475,-401.15242291,0.00023277,3]
[385903073,1758123040484,-483.152879,0.00023277,3]
[385903074,1758123040493,-305.41,0.00023277,3]
[385903075,1758123040503,-480.0,0.00023277,3]
[385903076,1758123040512,-480.0,0.00023277,3]
[385903077,1758123040521,-480.0,0.00023277,3]
[385903078,1758123040531,-163.05,0.00023277,3]
[385903079,1758123040541,-480.0,0.00023277,3]
[385903080,1758123040550,-480.0,0.00023277,3]
[385903081,1758123040559,-501.6,0.00023277,3]
[385903082,1758123040569,-570.27,0.00023277,3]
[385903083,1758123040578,-480.0,0.00023277,3]
[385903084,1758123040589,-516.39,0.00023277,3]
[385903085,1758123040599,-480.0,0.00023277,3]
[385903086,1758123040608,-492.27,0.00023277,3]
[385903087,1758123040617,-602.19,0.00023277,3]
[385903088,1758123040626,-480.0,0.00023277,3]
[385903089,1758123040636,-480.0,0.00023277,3]
[385903090,1758123040645,-480.0,0.00023277,3]
[385903091,1758123040655,-620.16,0.00023277,3]
[385903092,1758123040664,-566.9,0.00023277,3]
[385903093,1758123040674,-66.84224618,0.00023277,3]
[385903098,1758123043838,-455.64775382,0.00023277,3]
[385903099,1758123043848,-480.0,0.00023277,3]
[385903100,1758123043857,-480.0,0.00023277,3]
[385903101,1758123043867,-301.03,0.00023277,3]
[385903103,1758123043876,-664.29,0.00023277,3]
[385903104,1758123043887,-616.26,0.00023277,3]
[385903105,1758123043897,-362.18,0.00023277,3]
[385903106,1758123043907,-498.8354366,0.00023278,3]
[385903107,1758123043917,-480.0,0.00023278,3]
[385903108,1758123043928,-500.0,0.00023278,3]
[385903109,1758123043937,-480.0,0.00023278,3]
[385903110,1758123043946,-480.0,0.00023278,3]
[385903111,1758123043956,-480.0,0.00023278,3]
[385903112,1758123043965,-480.0,0.00023278,3]
[385903113,1758123043974,-480.0,0.00023278,3]
[385903114,1758123043984,-480.0,0.00023278,3]
[385903115,1758123043995,-480.0,0.00023278,3]
[385903116,1758123044006,-480.0,0.00023278,3]
[385903117,1758123044115,-480.0,0.00023278,3]
[385903118,1758123044125,-480.0,0.00023278,3]
[385903119,1758123044135,-480.0,0.00023278,3]
[385903120,1758123044147,-480.0,0.00023278,3]
[385903121,1758123044156,-480.0,0.00023278,3]
[385903122,1758123044166,-480.0,0.00023278,3]
[385903123,1758123044175,-480.0,0.00023278,3]
[385903124,1758123044186,-480.0,0.00023278,3]
[385903125,1758123044195,-480.0,0.00023278,3]
[385903126,1758123044205,-480.0,0.00023278,3]
[385903127,1758123044215,-480.0,0.00023278,3]
[385903128,1758123044224,-1790.26,0.00023278,3]
[385903129,1758123044233,-428.99357794,0.00023278,3]
[385903130,1758123044244,-480.0,0.00023278,3]
[385903131,1758123044254,-354.7776158,0.00023278,3]
[385903132,1758123044263,-480.0,0.00023278,3]
[385903133,1758123044272,-480.0,0.00023278,3]
[385903134,1758123044281,-480.0,0.00023278,3]
[385903135,1758123044291,-480.0,0.00023278,3]
[385903136,1758123044300,-480.0,0.00023278,3]
[385903137,1758123044309,-480.0,0.00023278,3]
[385903138,1758123044318,-480.0,0.00023278,3]
[385903139,1758123044328,-599.12,0.00023278,3]
[385903140,1758123044337,-480.0,0.00023278,3]
[385903141,1758123044346,-480.0,0.00023278,3]
[385903142,1758123044355,-480.0,0.00023278,3]
[385903143,1758123044365,-500.0,0.00023278,3]
[385903144,1758123044374,-1058.61509228,0.00023352,2]
[385903145,1758123044384,-8405.2989997,0.0002344,2]
[385903147,1758123044393,-500.0,0.00023451,2]
[385903149,1758123044402,-403.84147833,0.00023451,2]
[385903151,1758123044411,-424.222369,0.00023451,2]
[385903153,1758123044421,-259.76948985,0.00023451,2]
[385903155,1758123044430,-584.98,0.00023452,3]
[385903156,1758123044441,-480.0,0.00023452,3]
[385903157,1758123044451,-480.0,0.00023452,3]
[385903158,1758123044461,-480.0,0.00023452,3]
[385903159,1758123044471,-480.0,0.00023452,3]
[385903160,1758123044482,-480.0,0.00023452,3]
[385903161,1758123044492,-601.55,0.00023452,3]
[385903162,1758123044503,-480.0,0.00023452,3]
[385903163,1758123044513,-231.09043074,0.00023452,3]
[385903164,1758123044523,-480.0,0.00023452,3]
[385903165,1758123044533,-596.22,0.00023452,3]
[385903166,1758123044543,-603.94,0.00023452,3]
[385903167,1758123044552,-480.0,0.00023452,3]
[385903168,1758123044562,-369.99,0.00023452,3]
[385903169,1758123044573,-480.0,0.00023452,3]
[385903170,1758123044582,-480.0,0.00023452,3]
[385903171,1758123044592,-480.0,0.00023452,3]
[385903172,1758123044601,-581.7,0.00023452,3]
[385903173,1758123044610,-480.0,0.00023452,3]
[385903174,1758123044620,-480.0,0.00023452,3]
[385903175,1758123044630,-444.13504099,0.00023452,3]
[385903176,1758123044640,-480.0,0.00023452,3]
[385903177,1758123044650,-480.0,0.00023452,3]
[385903178,1758123044661,-480.0,0.00023452,3]
[385903179,1758123044670,-409.30259958,0.00023452,3]
[385903225,1758123046525,-198.26325301,0.00023177,2]
[385903227,1758123046534,-70.69740042,0.00023452,3]
[385903229,1758123046544,-3856.13,0.00023538,2]
[385903231,1758123046553,-480.0,0.00023539,3]
[385903233,1758123046563,-88.47048173,0.00023539,3]
[385903235,1758123046575,-4402.69951827,0.00023539,3]
[385903237,1758123046584,-480.0,0.00023539,3]
[385903239,1758123046594,-480.0,0.00023539,3]
[385903240,1758123046603,-481.47949055,0.00023539,3]
[385903241,1758123046612,-480.0,0.00023539,3]
[385903242,1758123046622,-480.0,0.00023539,3]
[385903244,1758123046631,-481.24214974,0.00023539,3]
[385903246,1758123046641,-480.0,0.00023539,3]
[385903247,1758123046650,-480.0,0.00023539,3]
[385903248,1758123046660,-151.0,0.00023544,2]
[385903249,1758123046669,-151.57965621,0.00023544,2]
[385903250,1758123046678,-151.0,0.00023544,2]
[385903251,1758123046688,-151.0,0.00023544,2]
[385903252,1758123046698,-151.85000742,0.00023544,2]
[385903253,1758123046707,-151.0,0.00023544,2]
[385903254,1758123046716,-151.0,0.00023544,2]
[385903255,1758123046725,-151.0,0.00023544,2]
[385903256,1758123046734,-151.0,0.00023544,2]
[385903257,1758123046744,-151.0,0.00023544,2]
[385903258,1758123046753,-151.0,0.00023544,2]
[385903259,1758123046762,-151.0,0.00023544,2]
[385903260,1758123046771,-151.0,0.00023544,2]
[385903261,1758123046780,-181.6552616,0.00023544,2]
[385903262,1758123046789,-151.0,0.00023544,2]
[385903263,1758123046798,-151.0,0.00023544,2]
[385903264,1758123046807,-151.0,0.00023544,2]
[385903265,1758123046816,-151.0,0.00023544,2]
[385903266,1758123046825,-250.0,0.00023544,2]
[385903267,1758123046834,-176.36474318,0.00023544,2]
[385903268,1758123046843,-250.0,0.00023544,2]
[385903269,1758123046853,-250.0,0.00023544,2]
[385903270,1758123046862,-250.0,0.00023544,2]
[385903271,1758123046872,-250.0,0.00023544,2]
[385903272,1758123046881,-250.0,0.00023544,2]
[385903273,1758123046890,-500.0,0.00023544,2]
[385903274,1758123046899,-250.0,0.00023544,2]
[385903275,1758123046908,-500.0,0.00023544,2]
[385903276,1758123046917,-250.0,0.00023544,2]
[385903277,1758123046927,-500.0,0.00023544,2]
[385903278,1758123046936,-250.0,0.00023544,2]
[385903279,1758123046945,-500.0,0.00023544,2]
[385903280,1758123046954,-250.0,0.00023544,2]
[385903281,1758123046963,-250.0,0.00023544,2]
[385903282,1758123046972,-500.0,0.00023544,2]
[385903283,1758123046981,-250.0,0.00023544,2]
[385903284,1758123046990,-500.0,0.00023544,2]
[385903285,1758123047000,-500.0,0.00023544,2]
[385903286,1758123047009,-500.0,0.00023544,2]
[385903287,1758123047018,-500.0,0.00023544,2]
[385903288,1758123047028,-500.0,0.00023544,2]
[385903289,1758123047037,-500.0,0.00023544,2]
[385903290,1758123047046,-500.0,0.00023544,2]
[385903291,1758123047055,-211.0,0.00023548,2]
[385903292,1758123047065,-480.0,0.0002355,3]
[385903293,1758123047074,-562.69,0.0002355,3]
[385903294,1758123047083,-480.0,0.0002355,3]
[385903295,1758123047092,-480.0,0.0002355,3]
[385903296,1758123047101,-405.02,0.0002355,3]
[385903297,1758123047110,-325.38,0.0002355,3]
[385903298,1758123047119,-480.0,0.0002355,3]
[385903299,1758123047128,-480.0,0.0002355,3]
[385903300,1758123047138,-480.0,0.00023551,3]
[385903301,1758123047150,-403.32,0.00023551,3]
[385903302,1758123047159,-441.7,0.00023551,3]
[385903303,1758123047168,-259.68,0.00023551,3]
[385903304,1758123047177,-440.34,0.00023551,3]
[385903305,1758123047187,-168.97,0.00023551,3]
[385903306,1758123047196,-412.28,0.00023551,3]
[385903307,1758123047205,-480.0,0.00023551,3]
[385903308,1758123047214,-313.77,0.00023551,3]
[385903309,1758123047226,-690.63,0.00023551,3]
[385903310,1758123047236,-480.0,0.00023551,3]
[385903311,1758123047245,-489.89354717,0.00023551,3]
[385903312,1758123047255,-480.0,0.00023551,3]
[385903313,1758123047264,-288.4,0.00023551,3]
[385903314,1758123047273,-543.14,0.00023551,3]
[385903315,1758123047282,-480.0,0.00023551,3]
[385903316,1758123047292,-189.6975807,0.00023551,3]
[385903317,1758123047301,-1139.75,0.00023551,3]
[385903318,1758123047311,-480.0,0.00023551,3]
[385903319,1758123047321,-269.62,0.00023551,3]
[385903320,1758123047330,-363.14,0.00023551,3]
[385903321,1758123047340,-480.0,0.00023551,3]
[385903322,1758123047349,-464.06,0.00023551,3]
[385903323,1758123047358,-501.6,0.00023551,3]
[385903324,1758123047367,-480.0,0.00023551,3]
[385903325,1758123047377,-516.39,0.00023551,3]
[385903326,1758123047386,-480.0,0.00023551,3]
[385903327,1758123047395,-280.5,0.00023551,3]
[385903328,1758123047404,-520.77,0.00023551,3]
[385903329,1758123047414,-479.61,0.00023551,3]
[385903330,1758123047423,-522.49,0.00023551,3]
[385903331,1758123047433,-480.0,0.00023551,3]
[385903332,1758123047442,-664.29,0.00023551,3]
[385903333,1758123047451,-616.26,0.00023551,3]
[385903334,1758123047461,-480.0,0.00023552,3]
[385903335,1758123047470,-480.0,0.00023552,3]
[385903336,1758123047480,-480.0,0.00023552,3]
[385903337,1758123047489,-480.0,0.00023552,3]
[385903338,1758123047499,-274.18,0.00023552,3]
[385903339,1758123047508,-1790.26,0.00023552,3]
[385903340,1758123047517,-480.0,0.00023552,3]
[385903341,1758123047526,-321.9,0.00023552,3]
[385903342,1758123047536,-599.12,0.00023552,3]
[385903343,1758123047545,-255.26,0.00023552,3]
[385903344,1758123047554,-437.11,0.00023552,3]
[385903345,1758123047563,-500.0,0.00023552,3]
[385903346,1758123047573,-500.74865934,0.00023573,2]
[385903347,1758123047582,-500.0,0.00023573,2]
[385903348,1758123047593,-163.55172474,0.00023595,3]
[385903349,1758123047602,-1281.02364356,0.00023629,2]
[385903350,1758123047611,-347.53221149,0.0002364,2]
[385903351,1758123047621,-1058.61509224,0.00023708,2]
[385903352,1758123047630,-168.0,0.0002371,2]
[385903353,1758123047639,-373.81,0.00023726,3]
[385903354,1758123047648,-215.27,0.00023726,3]
[385903355,1758123047657,-476.41,0.00023726,3]
[385903356,1758123047666,-194.98,0.00023726,3]
[385903357,1758123047675,-480.0,0.00023726,3]
[385903358,1758123047684,-480.0,0.00023726,3]
[385903359,1758123047694,-292.26,0.00023726,3]
[385903360,1758123047703,-206.47,0.00023726,3]
[385903361,1758123047713,-346.18,0.00023726,3]
[385903362,1758123047722,-346.67,0.00023726,3]
[385903363,1758123047732,-168.0,0.0002373,2]
[385903364,1758123047741,-292.1,0.0002373,2]
[385903365,1758123047751,-480.0,0.00023813,3]
[385903366,1758123047760,-4491.17,0.00023813,3]
[385903367,1758123047770,-480.0,0.00023813,3]
[385903368,1758123047779,-480.0,0.00023813,3]
[385903369,1758123047790,-480.0,0.00023813,3]
[385903370,1758123047799,-480.0,0.00023813,3]
[385903371,1758123047809,-782.65,0.00023816,3]
[385903372,1758123047819,-482.34,0.00023816,3]
[385903373,1758123047828,-241.17,0.00023816,3]
[385903374,1758123047838,-168.0,0.0002382,2]
[385903375,1758123047847,-500.0,0.00023821,2]
[385903376,1758123047857,-1000.0,0.00023821,2]
[385903377,1758123047867,-480.0,0.00023824,3]
[385903378,1758123047877,-480.0,0.00023824,3]
[385903379,1758123047886,-480.0,0.00023824,3]
[385903380,1758123047895,-480.0,0.00023824,3]
[385903381,1758123047905,-562.89,0.00023824,3]
[385903382,1758123047914,-480.0,0.00023825,3]
[385903383,1758123047923,-480.0,0.00023825,3]
[385903384,1758123047933,-690.63,0.00023825,3]
[385903385,1758123047942,-276.04,0.00023825,3]
[385903386,1758123047951,-460.63,0.00023825,3]
[385903387,1758123047961,-480.0,0.00023825,3]
[385903388,1758123047970,-1139.75,0.00023825,3]
[385903389,1758123047980,-480.0,0.00023825,3]
[385903390,1758123047989,-260.98,0.00023825,3]
[385903391,1758123047998,-501.6,0.00023825,3]
[385903392,1758123048008,-171.06,0.00023825,3]
[385903393,1758123048018,-516.39,0.00023825,3]
[385903394,1758123048027,-480.0,0.00023825,3]
[385903395,1758123048036,-522.49,0.00023825,3]
[385903396,1758123048045,-230.93,0.00023825,3]
[385903397,1758123048055,-664.29,0.00023825,3]
[385903398,1758123048064,-616.26,0.00023825,3]
[385903399,1758123048074,-171.57,0.00023826,3]
[385903400,1758123048083,-1790.26,0.00023826,3]
[385903401,1758123048093,-480.0,0.00023826,3]
[385903402,1758123048103,-599.12,0.00023826,3]
[385903403,1758123048112,-410.0,0.00023849,2]
[385903404,1758123048122,-723.54,0.00023963,3]
[385903405,1758123048131,-501.37998563,0.00023973,2]
[385903406,1758123048142,-500.0,0.00023973,2]
[385903407,1758123048155,-254.05330389,0.00023973,2]
[385903408,1758123048165,-500.0,0.00023973,2]
[385903409,1758123048174,-500.0,0.00023973,2]
[385903410,1758123048183,-500.0,0.00023973,2]
[385903411,1758123048193,-500.0,0.00023973,2]
[385903412,1758123048203,-500.0,0.00023973,2]
[385903413,1758123048213,-500.0,0.00023973,2]
[385903414,1758123048223,-191.75561018,0.00023989,2]
[385903415,1758123048232,-500.0,0.00023989,2]
[385903416,1758123048242,-250.56504186,0.00023989,2]
[385903417,1758123048251,-500.0,0.00023989,2]
[385903418,1758123048261,-401.91560091,0.00023989,2]
[385903419,1758123048270,-500.0,0.00023989,2]
[385903420,1758123048280,-500.0,0.00023989,2]
[385903421,1758123048289,-500.0,0.00023989,2]
[385903422,1758123048299,-500.0,0.00023989,2]
[385903423,1758123048308,-500.0,0.00023989,2]
[385903424,1758123048318,-37827.01306289,0.0002399,2]
[385903425,1758123048327,-41941.98461342,0.00023998,2]
[385903426,1758123172627,180.0,0.00020356,3]
[385903427,1758123281268,-150.0,0.00021549,2]
[385903428,1758123281300,-1000.0,0.00022082,2]
[385903429,1758123281331,-205.51807,0.00022149,2]
[385903430,1758123281363,-186.71,0.00022337,2]
[385903431,1758123281394,-172.8094807,0.00022475,2]
[385903432,1758123281426,-178.53,0.00022575,2]
[385903433,1758123281458,-172.80948068,0.00022863,2]
[385903434,1758123281489,-172.80948068,0.0002325,2]
[385903435,1758123281521,-847.79063332,0.0002325,2]
[385903436,1758123281552,-300.0,0.00023275,2]
[385903437,1758123281581,-160.0,0.00023275,2]
[385903438,1758123288812,-3770.35399348,0.00023276,2]
[385903439,1758123288924,-10000.01,0.00023276,2]
[385903440,1758123289028,-10000.01,0.00023276,2]
[385903441,1758123296236,-10000.01,0.00023276,2]
[385903442,1758123296379,-10000.01,0.00023276,2]
[385903443,1758123306333,-150.0,0.00021662,2]
[385903444,1758123306365,-170.16,0.00022693,2]
[385903445,1758123306399,-300.0,0.00023275,2]
[385903446,1758123306431,-300.0,0.00023275,2]
[385903447,1758123306594,-1200.0,0.00023275,2]
[385903448,1758123306628,-300.0,0.00023275,2]
[385903449,1758123306802,-5159.69,0.00023276,2]
[385903450,1758123383478,-1243.978176,0.00022277,2]
[385903451,1758123383509,-2120.66287503,0.00023177,2]
[385903452,1758123383540,-151.7458028,0.00023229,2]
[385903453,1758123383571,-300.0,0.00023275,2]
[385903454,1758123383602,-1069.91600652,0.00023276,2]
[385903455,1758123383708,-227.4042793,0.00023276,2]
[385903456,1758123481573,-150.0,0.0002165,2]
[385903457,1758123481610,-188.961411,0.00022276,2]
[385903458,1758123481646,-280.442239,0.00022277,2]
[385903459,1758123481683,-160.0,0.00022304,3]
[385903460,1758123481719,-162.01,0.00022681,2]
[385903461,1758123481899,-160.0,0.0002304,4]
[385903462,1758123481939,-2660.91169324,0.00023248,2]